bitfinex/quotes_SOLUSD_20250908
["timestamp","ask_amount","ask_price","bid_price","bid_amount"]
[1757343141210,8.1272949,214.94,214.93,36.31]
[1757343141515,8.8072949,214.94,214.93,36.31]
[1757343142104,13.30815742,214.94,214.93,36.31]
[1757343142305,8.1272949,214.94,214.93,36.31]
[1757343142708,8.8072949,214.94,214.93,36.31]
[1757343143092,13.30815742,214.94,214.93,36.31]
[1757343144907,26.90375143,214.94,214.93,36.31]
[1757343145524,40.86470729,214.94,214.93,36.31]
[1757343146027,26.90375143,214.94,214.93,36.31]
[1757343146231,22.40288891,214.94,214.93,36.31]
[1757343146420,26.90375143,214.94,214.93,36.31]
[1757343146598,22.40288891,214.94,214.93,36.31]
[1757343146799,26.90375143,214.94,214.93,36.31]
[1757343147501,26.90375143,214.94,214.93,0.03]
[1757343150207,22.40288891,214.94,214.93,0.03]
[1757343150406,26.90375143,214.94,214.93,0.03]
[1757343150603,23.42891768,214.94,214.93,0.03]
[1757343150825,26.90484818,214.94,214.93,0.03]
[1757343151035,22.40398566,214.94,214.93,0.03]
[1757343151330,21.72398566,214.94,214.93,0.03]
[1757343151503,8.12839165,214.94,214.93,0.03]
[1757343151703,4.65246115,214.94,214.93,0.7]
[1757343152025,5.33246115,214.94,214.93,0.03]
[1757343152236,13.3082263,214.94,214.93,36.29]
[1757343152730,8.80736378,214.94,214.93,36.29]
[1757343154108,8.12736378,214.94,214.93,36.29]
[1757343154412,4.65246115,214.94,214.93,36.29]
[1757343155913,11.69031071,214.96,214.93,36.29]
[1757343156223,0.06,214.96,214.94,0.67]
[1757343156531,72.0,214.95,214.93,0.03]
[1757343156712,72.0,214.95,214.94,36.26]
[1757343156917,72.0,214.95,214.94,36.93]
[1757343158607,76.6522447,214.95,214.94,36.26]
[1757343159424,76.6522447,214.95,214.93,0.03]
[1757343159733,76.6522447,214.95,214.94,36.26]
[1757343160239,76.6522447,214.95,214.93,0.03]
[1757343160408,0.06,214.96,214.94,36.26]
[1757343160748,0.06,214.96,214.91,0.03]
[1757343161033,72.0,214.94,214.93,0.03]
[1757343161620,72.72,214.94,214.93,0.03]
[1757343161822,4.19701955,214.94,214.93,36.29]
[1757343162018,4.19701955,214.94,214.93,0.03]
[1757343162220,4.19701955,214.94,214.93,36.29]
[1757343162425,8.8494807,214.94,214.93,36.29]
[1757343162609,8.1294807,214.94,214.93,36.29]
[1757343164008,8.8494807,214.94,214.93,0.03]
[1757343164313,8.8494807,214.94,214.93,36.27]
[1757343165123,8.1294807,214.94,214.93,36.27]
[1757343166841,8.8494807,214.94,214.93,36.27]
[1757343167135,8.1294807,214.94,214.93,36.27]
[1757343167316,25.32346746,214.94,214.93,36.27]
[1757343167710,22.44507471,214.94,214.93,36.27]
[1757343168736,8.1294807,214.94,214.93,36.27]
[1757343170537,8.1294807,214.94,214.93,0.03]
[1757343170722,8.8494807,214.94,214.93,36.27]
[1757343172436,8.1294807,214.94,214.93,36.27]
[1757343172637,8.1340664,214.94,214.93,36.27]
[1757343173323,8.8540664,214.94,214.93,36.27]
[1757343175354,8.8540664,214.94,214.93,0.03]
[1757343175355,11.73245915,214.94,214.93,0.03]
[1757343175642,11.73245915,214.94,214.93,36.27]
[1757343176224,25.32805316,214.94,214.93,0.03]
[1757343176424,13.59559401,214.91,214.9,0.03]
[1757343176725,19.95559201,214.91,214.9,20.43]
[1757343177035,20.67559201,214.91,214.88,0.03]
[1757343177235,16.47398676,214.89,214.88,0.03]
[1757343177536,19.95559201,214.89,214.88,0.03]
[1757343177741,20.67559201,214.89,214.88,0.03]
[1757343178134,20.67559201,214.89,214.88,36.27]
[1757343178445,20.67559201,214.89,214.87,0.03]
[1757343178636,24.60935224,214.88,214.87,0.03]
[1757343179035,25.32935224,214.88,214.87,0.03]
[1757343179536,22.45095949,214.88,214.87,0.03]
[1757343179750,25.32935224,214.88,214.87,36.27]
[1757343180334,25.32935224,214.88,214.87,0.03]
[1757343180752,36.96375283,214.88,214.85,1e-08]
[1757343180936,42.47398676,214.86,214.85,1e-08]
[1757343181124,45.95559201,214.86,214.85,1e-08]
[1757343181325,46.67559201,214.86,214.85,1e-08]
[1757343181544,46.67559201,214.86,214.81,0.03]
[1757343181826,16.47398676,214.83,214.81,0.03]
[1757343182030,24.61043537,214.83,214.81,0.03]
[1757343182240,25.33043537,214.83,214.81,0.03]
[1757343183058,25.33043537,214.83,214.81,23.91]
[1757343184753,4.65484336,214.83,214.81,23.91]
[1757343186136,4.65462669,214.84,214.81,23.91]
[1757343189336,5.35462669,214.84,214.81,23.91]
[1757343191363,4.65462669,214.84,214.81,23.91]
[1757343191540,4.65462669,214.84,214.81,24.22]
[1757343193073,39.9655052,214.91,214.81,23.91]
[1757343193074,72.0,214.83,214.81,23.91]
[1757343193261,39.9655052,214.91,214.81,28.5651516]
[1757343193262,4.6531106,214.91,214.81,28.5651516]
[1757343193651,4.6531106,214.91,214.83,0.31]
[1757343193853,4.6531106,214.91,214.84,26.0]
[1757343194068,4.6531106,214.91,214.85,0.31]
[1757343195846,0.06,214.88,214.85,0.31]
[1757343196443,0.06,214.88,214.86,36.22]
[1757343196852,0.06,214.88,214.87,36.22]
[1757343197457,5.41376023,214.88,214.87,36.22]
[1757343198464,0.06,214.88,214.87,36.22]
[1757343198651,4.71376023,214.88,214.87,36.22]
[1757343199549,0.06,214.88,214.87,36.22]
[1757343199953,0.06,214.88,214.87,36.53]
[1757343200551,0.06,214.88,214.87,36.22]
[1757343201177,0.06,214.88,214.87,36.53]
[1757343203272,0.06,214.88,214.87,36.22]
[1757343206972,0.76,214.88,214.84,26.0]
[1757343207178,0.76,214.88,214.85,36.2]
[1757343207367,0.06,214.88,214.85,36.2]
[1757343207774,72.0,214.87,214.85,36.2]
[1757343208279,72.0,214.87,214.84,0.31]
[1757343208481,72.0,214.87,214.82,42.63252273]
[1757343208661,72.0,214.87,214.83,36.51]
[1757343208981,72.0,214.87,214.83,0.31]
[1757343209187,72.0,214.87,214.84,36.2]
[1757343209982,72.0,214.87,214.84,40.85456939]
[1757343210186,72.0,214.87,214.84,41.16456939]
[1757343210360,72.0,214.87,214.85,0.31]
[1757343210556,72.0,214.87,214.84,40.85456939]
[1757343210772,72.0,214.87,214.84,41.16456939]
[1757343211373,72.0,214.87,214.84,4.96456939]
[1757343211573,72.0,214.87,214.85,40.85440655]
[1757343211780,72.0,214.87,214.86,0.31]
[1757343212567,0.06,214.88,214.87,26.0]
[1757343212765,0.06,214.88,214.87,26.31]
[1757343213592,0.06,214.88,214.87,4.96397682]
[1757343214469,0.06,214.88,214.87,62.2]
[1757343215484,0.06,214.88,214.87,66.85397682]
[1757343216194,0.73,214.88,214.85,13.96030619]
[1757343216384,0.67,214.87,214.86,36.18]
[1757343217090,72.67,214.87,214.83,0.03]
[1757343217404,72.67,214.87,214.84,36.18]
[1757343217595,4.65419342,214.86,214.84,36.18]
[1757343217772,0.67,214.85,214.84,36.18]
[1757343219600,5.32441005,214.85,214.84,36.18]
[1757343219778,0.67,214.85,214.84,36.18]
[1757343220695,5.32444566,214.85,214.83,0.03]
[1757343220897,4.65444566,214.85,214.84,36.18]
[1757343221401,5.32444566,214.85,214.84,36.18]
[1757343221582,0.67,214.85,214.84,36.18]
[1757343222097,5.32441005,214.85,214.84,36.18]
[1757343227104,5.32441005,214.85,214.83,0.03]
[1757343227395,4.65441005,214.85,214.84,36.18]
[1757343227801,5.32441005,214.85,214.84,36.18]
[1757343228099,0.67,214.85,214.84,36.18]
[1757343229790,5.32441005,214.85,214.84,36.18]
[1757343232104,0.73,214.88,214.84,36.18]
[1757343232492,5.38376033,214.88,214.84,36.18]
[1757343232690,72.0,214.87,214.85,0.31]
[1757343233195,72.0,214.87,214.84,40.83450214]
[1757343234902,72.0,214.87,214.84,4.96450214]
[1757343235103,72.0,214.87,214.85,36.18]
[1757343235291,72.0,214.87,214.84,4.65450214]
[1757343235488,72.0,214.87,214.85,36.18]
[1757343235995,72.0,214.87,214.86,36.18]
[1757343237194,72.67,214.87,214.86,36.18]
[1757343237605,72.67,214.87,214.83,0.03]
[1757343237785,0.67,214.86,214.83,0.03]
[1757343237992,0.67,214.86,214.84,36.16]
[1757343238205,0.67,214.85,214.84,36.16]
[1757343239508,72.0,214.87,214.83,0.03]
[1757343239703,72.0,214.87,214.84,36.16]
[1757343239910,0.67,214.86,214.84,36.16]
[1757343241209,76.65399518,214.87,214.83,0.03]
[1757343241210,72.67,214.85,214.83,0.03]
[1757343241411,72.67,214.85,214.84,36.16]
[1757343242108,72.67,214.85,214.83,0.03]
[1757343242286,72.0,214.85,214.84,36.16]
[1757343242619,0.06,214.88,214.84,36.47]
[1757343243105,0.06,214.88,214.85,4.65441005]
[1757343243813,0.06,214.88,214.84,41.12458445]
[1757343244034,0.06,214.88,214.84,40.81458445]
[1757343244424,0.06,214.88,214.84,36.16]
[1757343244611,0.73,214.88,214.84,36.16]
[1757343244794,0.67,214.87,214.84,36.16]
[1757343245001,0.06,214.88,214.84,36.47]
[1757343245799,0.06,214.88,214.84,41.12454906]
[1757343246000,0.06,214.88,214.85,0.31]
[1757343246200,0.06,214.88,214.87,26.0]
[1757343246397,0.06,214.88,214.87,62.93539768]
[1757343246719,0.06,214.9,214.88,13.59559401]
[1757343246916,0.06,214.9,214.89,0.46535436]
[1757343247105,0.06,214.9,214.89,5.42889803]
[1757343247445,0.06,214.9,214.89,41.58889803]
[1757343247629,0.06,214.9,214.89,43.44949295]
[1757343247799,0.06,214.9,214.89,7.28949295]
[1757343247998,0.06,214.9,214.89,43.44949295]
[1757343251621,0.06,214.9,214.89,43.42949295]
[1757343251802,0.06,214.9,214.89,1.86059492]
[1757343252220,0.74,214.9,214.89,36.14]
[1757343252414,0.06,214.9,214.89,36.14]
[1757343253914,0.06,214.9,214.88,1.86094117]
[1757343254229,0.06,214.9,214.89,36.14]
[1757343254914,0.06,214.9,214.89,40.79354367]
[1757343255936,0.06,214.9,214.89,42.65448484]
[1757343256813,0.06,214.9,214.89,42.96448484]
[1757343257614,0.06,214.9,214.89,42.65448484]
[1757343258010,0.06,214.9,214.89,42.96448484]
[1757343258209,0.06,214.91,214.89,43.4298392]
[1757343258431,0.06,214.91,214.9,0.31]
[1757343259134,0.06,214.91,214.89,43.1198392]
[1757343259435,0.06,214.91,214.9,36.14]
[1757343260033,0.06,214.91,214.9,41.10332712]
[1757343260733,0.06,214.91,214.9,40.79332712]
[1757343261343,0.06,214.91,214.9,41.10332712]
[1757343261543,0.06,214.91,214.9,40.79332712]
[1757343262117,0.06,214.91,214.9,4.65332712]
[1757343262326,0.06,214.91,214.9,40.77332712]
[1757343265434,0.06,214.91,214.9,4.65332712]
[1757343265615,0.06,214.91,214.9,40.77332712]
[1757343266135,0.06,214.91,214.9,4.65332712]
[1757343266338,0.74,214.91,214.89,1.86094117]
[1757343266544,0.06,214.91,214.9,36.12]
[1757343267026,0.74,214.91,214.9,36.12]
[1757343267937,0.74,214.91,214.89,1.86094117]
[1757343268131,0.06,214.91,214.9,36.12]
[1757343268327,0.06,214.91,214.9,26.0]
[1757343268656,0.74,214.91,214.9,36.12]
[1757343274227,0.06,214.91,214.9,36.12]
[1757343274548,0.74,214.91,214.9,36.12]
[1757343276045,0.06,214.91,214.9,36.12]
[1757343276238,0.06,214.91,214.9,40.77332712]
[1757343276427,0.06,214.91,214.9,41.08332712]
[1757343276766,0.06,214.91,214.9,55.50377089]
[1757343277538,0.06,214.91,214.9,55.19377089]
[1757343277939,0.06,214.91,214.9,50.54044377]
[1757343278125,0.77,214.91,214.9,36.12]
[1757343278319,0.06,214.91,214.89,0.03]
[1757343278536,0.77,214.91,214.9,37.96068147]
[1757343278725,0.77,214.91,214.9,36.1]
[1757343281335,0.77,214.91,214.89,27.89076804]
[1757343281534,0.71,214.9,214.89,26.03]
[1757343281734,0.71,214.9,214.89,62.13]
[1757343283540,0.06,214.91,214.89,66.78352774]
[1757343283742,0.77,214.91,214.89,66.78352774]
[1757343284141,0.71,214.9,214.89,0.03]
[1757343284322,3.58869243,214.9,214.87,13.95705879]
[1757343284523,0.71,214.89,214.88,36.1]
[1757343286348,5.36354367,214.89,214.88,36.1]
[1757343287149,5.36354367,214.89,214.88,36.13]
[1757343290443,5.36354367,214.89,214.88,0.03]
[1757343290654,5.36354367,214.89,214.88,36.13]
[1757343291946,8.2422361,214.89,214.88,36.13]
[1757343292152,8.2422361,214.89,214.88,0.03]
[1757343292359,8.2422361,214.89,214.88,36.13]
[1757343293338,4.65354367,214.89,214.88,36.13]
[1757343294741,4.65354367,214.89,214.88,0.03]
[1757343294951,4.65354367,214.89,214.88,36.13]
[1757343295755,5.36354367,214.89,214.88,0.03]
[1757343295955,5.36354367,214.89,214.88,36.13]
[1757343296453,8.2422361,214.89,214.88,0.03]
[1757343296660,8.2422361,214.89,214.88,29.61]
[1757343297035,8.2422361,214.89,214.88,36.13]
[1757343297939,0.71,214.89,214.88,36.13]
[1757343298764,0.71,214.89,214.88,0.03]
[1757343298966,0.71,214.89,214.88,36.13]
[1757343299764,5.36354367,214.89,214.88,36.13]
[1757343301037,8.2422361,214.89,214.88,36.13]
[1757343301541,8.2422361,214.89,214.88,0.03]
[1757343301741,8.2422361,214.89,214.88,36.13]
[1757343304664,4.65354367,214.89,214.88,36.13]
[1757343304864,7.5322361,214.89,214.88,36.13]
[1757343305065,4.65354367,214.89,214.88,0.03]
[1757343305259,4.65354367,214.89,214.88,36.13]
[1757343306068,0.06,214.91,214.88,36.47]
[1757343306948,3.59869243,214.9,214.88,0.03]
[1757343307162,0.06,214.91,214.88,0.03]
[1757343307163,3.59869243,214.89,214.88,0.03]
[1757343307679,3.59869243,214.89,214.88,25.01]
[1757343308056,3.59869243,214.89,214.88,0.03]
[1757343308546,11.7257865,214.89,214.88,0.03]
[1757343308748,11.7257865,214.89,214.88,26.33]
[1757343309765,11.7257865,214.89,214.88,36.11]
[1757343311172,11.7257865,214.89,214.88,0.03]
[1757343311376,11.7257865,214.89,214.88,26.79]
[1757343312995,50.5508337,214.89,214.86,0.03]
[1757343313271,7.53266925,214.87,214.86,0.03]
[1757343313659,8.25266925,214.87,214.86,0.03]
[1757343313969,4.65397682,214.87,214.86,0.03]
[1757343314276,4.65397682,214.87,214.86,36.11]
[1757343314476,72.0,214.88,214.86,36.11]
[1757343314657,76.65383793,214.88,214.86,36.11]
[1757343315682,77.37383793,214.88,214.86,36.11]
[1757343319357,76.65383793,214.88,214.86,36.11]
[1757343319856,77.37383793,214.88,214.86,36.11]
[1757343320374,0.72,214.87,214.86,0.03]
[1757343320567,0.72,214.87,214.86,36.11]
[1757343321062,72.0,214.88,214.86,36.45]
[1757343321375,72.0,214.88,214.87,0.34]
[1757343321568,72.0,214.88,214.86,36.11]
[1757343321876,72.0,214.88,214.87,0.34]
[1757343322177,0.06,214.91,214.87,0.34]
[1757343322382,0.06,214.91,214.88,0.34]
[1757343323080,0.06,214.91,214.89,26.34]
[1757343323678,0.06,214.91,214.9,0.34]
[1757343323860,0.06,214.91,214.89,26.0]
[1757343324059,0.06,214.91,214.89,26.34]
[1757343324855,0.06,214.91,214.9,0.34]
[1757343325391,0.06,214.91,214.9,36.42]
[1757343326573,0.06,214.91,214.9,36.08]
[1757343327277,0.06,214.91,214.9,41.07332712]
[1757343327483,0.06,214.91,214.9,45.78578827]
[1757343328880,0.06,214.91,214.9,41.07332712]
[1757343331199,0.06,214.91,214.9,41.53865983]
[1757343331360,0.06,214.91,214.9,43.39916821]
[1757343332285,0.06,214.91,214.9,56.99476222]
[1757343332592,0.06,214.94,214.93,26.0]
[1757343332766,0.06,214.94,214.93,62.06]
[1757343332966,0.06,214.94,214.93,62.4]
[1757343333292,0.06,214.94,214.93,63.92033533]
[1757343333475,0.06,214.94,214.93,64.26033533]
[1757343335086,0.06,214.94,214.93,68.57301294]
[1757343335273,0.06,214.94,214.93,63.92033533]
[1757343335782,0.06,214.94,214.93,1.86033533]
[1757343335986,0.06,214.94,214.93,4.65267761]
[1757343336165,0.06,214.94,214.93,40.71267761]
[1757343336572,0.06,214.94,214.93,4.65267761]
[1757343336887,0.06,214.94,214.93,40.71267761]
[1757343339690,0.06,214.94,214.93,42.57301294]
[1757343340090,0.06,214.94,214.93,6.51301294]
[1757343340270,0.06,214.94,214.93,42.57301294]
[1757343340465,0.06,214.94,214.93,37.92033533]
[1757343340671,0.06,214.94,214.93,36.06]
[1757343341891,0.78,214.94,214.93,62.04]
[1757343343188,0.06,214.94,214.93,62.04]
[1757343343574,0.78,214.94,214.93,62.04]
[1757343343898,0.06,214.94,214.93,62.04]
[1757343344079,0.78,214.94,214.93,62.04]
[1757343344492,0.78,214.94,214.93,26.0]
[1757343344689,5.43246115,214.94,214.9,0.03]
[1757343344892,5.43246115,214.94,214.92,26.0]
[1757343345077,72.72,214.93,214.9,0.03]
[1757343345280,72.72,214.93,214.91,36.04]
[1757343345481,0.72,214.92,214.91,36.04]
[1757343346778,5.3728941,214.92,214.91,36.04]
[1757343347299,5.3728941,214.92,214.9,0.03]
[1757343347488,4.6528941,214.92,214.91,36.04]
[1757343348094,5.3728941,214.92,214.91,36.04]
[1757343349796,5.3728941,214.92,214.9,0.03]
[1757343350005,4.49615658,214.91,214.9,0.03]
[1757343350311,5.3728941,214.92,214.9,36.07]
[1757343350482,5.21615658,214.91,214.9,36.07]
[1757343352539,9.86926718,214.91,214.9,36.07]
[1757343354091,5.3731106,214.91,214.9,36.07]
[1757343354290,9.86926718,214.91,214.9,36.07]
[1757343354818,5.3731106,214.91,214.9,36.07]
[1757343355108,9.86926718,214.91,214.9,36.07]
[1757343355306,5.3731106,214.91,214.9,36.07]
[1757343355502,9.86926718,214.91,214.9,36.07]
[1757343356418,5.3731106,214.91,214.9,36.07]
[1757343359504,4.65292923,214.92,214.9,36.07]
[1757343359819,0.72,214.91,214.9,36.07]
[1757343360128,0.06,214.93,214.9,36.07]
[1757343360330,0.78,214.93,214.9,36.07]
[1757343360823,5.43268909,214.93,214.9,36.07]
[1757343361122,0.06,214.93,214.9,36.07]
[1757343362104,0.06,214.93,214.91,0.34]
[1757343362318,0.06,214.93,214.9,36.07]
[1757343362628,0.06,214.93,214.9,40.72330593]
[1757343363022,0.06,214.93,214.91,36.38]
[1757343364310,0.06,214.93,214.91,0.34]
[1757343364516,0.06,214.93,214.92,36.04]
[1757343366230,0.75,214.93,214.92,36.04]
[1757343366520,0.06,214.93,214.92,36.04]
[1757343371617,0.06,214.93,214.92,40.6928941]
[1757343371826,0.06,214.93,214.92,36.04]
[1757343374235,0.06,214.93,214.9,0.03]
[1757343374415,0.69,214.92,214.91,36.02]
[1757343374615,0.06,214.93,214.91,36.02]
[1757343374812,0.06,214.93,214.92,36.02]
[1757343375043,0.75,214.93,214.92,36.02]
[1757343375221,0.06,214.93,214.92,36.02]
[1757343378942,0.06,214.93,214.92,36.36]
[1757343379537,0.06,214.93,214.92,41.0128941]
[1757343380336,0.06,214.93,214.92,40.6728941]
[1757343381039,0.06,214.93,214.92,36.02]
[1757343381559,0.06,214.93,214.92,40.6728941]
[1757343382656,0.75,214.93,214.92,36.02]
[1757343382856,0.06,214.93,214.92,36.02]
[1757343383057,0.75,214.93,214.92,36.02]
[1757343383455,0.06,214.93,214.92,36.02]
[1757343383960,0.06,214.93,214.92,26.0]
[1757343384160,0.06,214.93,214.92,62.0]
[1757343384462,0.06,214.93,214.92,30.6528941]
[1757343384648,0.06,214.93,214.92,66.6528941]
[1757343385848,0.06,214.93,214.92,66.9928941]
[1757343386671,0.06,214.93,214.92,80.58848811]
[1757343387065,0.06,214.93,214.92,82.44865041]
[1757343387749,0.06,214.93,214.92,46.44865041]
[1757343388079,0.06,214.93,214.92,82.44865041]
[1757343388565,0.06,214.93,214.92,46.10865041]
[1757343388766,0.06,214.93,214.92,1.8601623]
[1757343388968,0.06,214.93,214.92,37.8601623]
[1757343389469,0.06,214.93,214.92,1.8601623]
[1757343389676,0.06,214.93,214.92,37.8601623]
[1757343389861,0.06,214.93,214.92,42.5130564]
[1757343391973,0.06,214.93,214.92,56.91393982]
[1757343392480,0.06,214.93,214.92,20.57393982]
[1757343392681,0.06,214.93,214.92,56.57393982]
[1757343392861,0.06,214.93,214.92,56.91393982]
[1757343395375,0.06,214.93,214.92,56.94393982]
[1757343400695,0.06,214.93,214.92,82.58393982]
[1757343401490,0.06,214.93,214.92,46.60393982]
[1757343401791,0.06,214.93,214.92,82.58393982]
[1757343403985,0.06,214.93,214.92,46.60393982]
[1757343404192,0.06,214.93,214.92,82.58393982]
[1757343404891,0.06,214.95,214.93,13.59559401]
[1757343405191,0.06,214.95,214.94,50.04084012]
[1757343405496,0.06,214.95,214.94,52.24057]
[1757343405999,0.06,214.95,214.94,56.89303115]
[1757343407090,0.06,215.0,214.97,39.59559401]
[1757343407401,0.06,215.0,214.97,76.04077519]
[1757343407577,0.06,215.0,214.97,75.57559401]
[1757343407778,0.06,215.0,214.97,77.43523743]
[1757343408174,0.74,215.0,214.97,82.08704931]
[1757343408693,0.06,215.0,214.97,85.78933579]
[1757343409000,0.74,214.98,214.97,85.78933579]
[1757343409190,0.06,214.98,214.97,85.78933579]
[1757343413100,0.06,214.98,214.97,119.24933579]
[1757343414400,0.06,214.98,214.97,115.54704931]
[1757343415613,0.06,214.98,214.97,83.23152014]
[1757343415798,0.06,214.98,214.97,119.19152014]
[1757343416336,0.06,214.98,214.97,83.23152014]
[1757343416510,0.06,214.98,214.97,119.19152014]
[1757343419807,0.06,214.98,214.97,83.23152014]
[1757343420104,0.74,214.98,214.97,119.19152014]
[1757343420307,0.06,214.98,214.97,119.19152014]
[1757343420914,0.74,214.98,214.97,119.19152014]
[1757343421122,0.06,214.98,214.97,119.19152014]
[1757343421506,0.06,215.0,214.98,18.2471895]
[1757343421801,0.06,215.0,214.99,49.55559401]
[1757343422198,0.06,215.0,214.99,15.45489166]
[1757343422694,0.06,215.0,214.99,51.41489166]
[1757343423602,0.06,215.0,214.99,56.06627079]
[1757343424309,0.06,215.0,214.99,56.5314087]
[1757343425295,0.06,215.0,214.99,56.8714087]
[1757343425505,0.06,215.0,214.99,56.5314087]
[1757343425995,0.06,215.0,214.99,20.5714087]
[1757343426318,0.06,215.0,214.99,56.5314087]
[1757343426616,1e-08,215.03,215.02,39.59559401]
[1757343426822,0.7,215.09,215.06,26.0]
[1757343427108,0.7,215.09,215.07,35.96]
[1757343427410,72.0,215.19,215.11,26.0]
[1757343427613,9.3943859,215.22,215.15,26.0]
[1757343427814,9.3943859,215.22,215.16,35.96]
[1757343427815,0.7,215.21,215.16,35.96]
[1757343428415,0.7,215.2,215.17,4.74643668]
[1757343428596,0.7,215.2,215.18,35.96]
[1757343428797,0.7,215.19,215.18,35.96]
[1757343429124,5.34717096,215.19,215.18,35.96]
[1757343430613,5.34717096,215.19,215.15,39.93825354]
[1757343430810,0.7,215.18,215.15,39.93825354]
[1757343431113,3.57678373,215.17,215.16,35.94]
[1757343432205,8.22427176,215.17,215.16,35.94]
[1757343432404,5.34748803,215.17,215.16,35.94]
[1757343432605,8.22427176,215.17,215.16,35.94]
[1757343434817,8.22427176,215.17,215.13,4.64717096]
[1757343435117,0.7,215.16,215.14,35.94]
[1757343435320,7.52383697,215.2,215.15,35.94]
[1757343435321,2.87678373,215.19,215.15,35.94]
[1757343435522,2.87678373,215.19,215.16,35.94]
[1757343435722,2.87678373,215.17,215.03,0.34]
[1757343435917,3.57678373,215.16,215.11,13.9414922]
[1757343436107,3.57678373,215.16,215.12,35.94]
[1757343436423,5.34805003,215.15,215.12,35.94]
[1757343436625,0.7,215.14,215.12,35.94]
[1757343436818,0.7,215.13,215.12,35.94]
[1757343437020,4.64805003,215.15,215.12,35.94]
[1757343437333,0.7,215.13,215.12,35.94]
[1757343439221,0.7,215.13,215.11,11.61838798]
[1757343439435,4.6481336,215.15,215.12,35.94]
[1757343439740,4.6481336,215.15,215.13,35.94]
[1757343439915,0.7,215.14,215.13,35.94]
[1757343441530,5.34813609,215.14,215.13,35.94]
[1757343441948,8.22491982,215.14,215.11,11.61838798]
[1757343442108,0.7,215.13,215.12,35.94]
[1757343442509,3.57678373,215.13,215.12,35.94]
[1757343443113,0.7,215.13,215.12,35.94]
[1757343443423,5.34835215,215.13,215.12,35.94]
[1757343443628,4.64770403,215.16,215.12,35.94]
[1757343443824,0.7,215.15,215.12,35.94]
[1757343444024,4.64770403,215.16,215.12,35.94]
[1757343444025,0.7,215.14,215.12,35.94]
[1757343444230,0.7,215.13,215.12,35.94]
[1757343445444,19.14530611,215.14,215.07,11.61969349]
[1757343445646,3.57678373,215.13,215.08,35.92]
[1757343445815,0.7,215.12,215.08,35.92]
[1757343446019,0.7,215.11,215.08,35.92]
[1757343446716,0.7,215.15,215.11,26.0]
[1757343446930,72.0,215.16,215.12,35.92]
[1757343447130,72.7,215.15,215.12,35.92]
[1757343447336,72.0,215.15,215.12,35.92]
[1757343447722,0.7,215.14,215.12,35.92]
[1757343449444,0.7,215.13,215.08,33.44]
[1757343449634,0.7,215.12,215.09,35.92]
[1757343449824,0.7,215.14,215.09,35.92]
[1757343450026,0.7,215.13,215.09,35.92]
[1757343450534,76.64800613,215.15,215.09,35.92]
[1757343450733,0.7,215.12,215.09,35.92]